bitfinex-derivatives/quotes_BTCF0:USTF0_20250904
["timestamp","ask_amount","ask_price","bid_price","bid_amount"]
[1756981650102,3.45528,110950.0,110940.0,1.23557952]
[1756981650397,2.62512,110950.0,110940.0,1.23557952]
[1756981650602,3.45524,110950.0,110940.0,1.23557952]
[1756981652807,2.62512,110950.0,110940.0,1.23557952]
[1756981653007,3.4552,110950.0,110940.0,1.23557952]
[1756981653509,3.4552,110950.0,110940.0,1.14546462]
[1756981654100,3.4552,110950.0,110940.0,1.23557952]
[1756981654301,3.4552,110950.0,110940.0,1.14546462]
[1756981654508,3.4552,110950.0,110940.0,1.23557952]
[1756981660716,2.62512,110950.0,110940.0,1.23557952]
[1756981660920,3.45504,110950.0,110940.0,1.23557952]
[1756981664411,3.45504,110950.0,110940.0,1.14546462]
[1756981664817,4.2152951,110950.0,110940.0,1.14546462]
[1756981666112,3.70604,110950.0,110940.0,1.14546462]
[1756981666315,4.3964019,110950.0,110940.0,0.82662462]
[1756981666519,4.3974019,110950.0,110940.0,0.82662462]
[1756981666723,4.3974019,110950.0,110940.0,0.31513939]
[1756981670615,0.0901149,110940.0,110930.0,0.04506638]
[1756981670921,1.87093,110940.0,110930.0,0.38]
[1756981671709,2.12093,110940.0,110930.0,0.38]
[1756981673822,2.12093,110940.0,110930.0,0.45288175]
[1756981676222,2.08093,110940.0,110930.0,0.45288175]
[1756981678825,0.96117,110940.0,110930.0,0.45288175]
[1756981679023,1.54085,110940.0,110930.0,0.64294175]
[1756981679228,1.54085,110940.0,110930.0,0.52275175]
[1756981679725,1.79085,110940.0,110930.0,0.52275175]
[1756981679930,1.79085,110940.0,110930.0,0.64294175]
[1756981680730,1.54081,110940.0,110930.0,0.64294175]
[1756981682231,0.71117,110940.0,110930.0,0.64294175]
[1756981682430,1.54081,110940.0,110930.0,0.64294175]
[1756981683130,1.79081,110940.0,110930.0,0.45288175]
[1756981683332,2.13081,110940.0,110930.0,0.45288175]
[1756981684830,2.13077,110940.0,110930.0,0.45288175]
[1756981694138,1.8705149,110940.0,110930.0,0.45288175]
[1756981694331,2.13077,110940.0,110930.0,0.45288175]
[1756981695937,1.8705149,110940.0,110930.0,0.45288175]
[1756981696838,1.8735149,110940.0,110930.0,0.45288175]
[1756981697141,2.13377,110940.0,110930.0,0.45288175]
[1756981697335,2.13357,110940.0,110930.0,0.45288175]
[1756981697536,2.13557,110940.0,110930.0,0.45288175]
[1756981697838,2.13553,110940.0,110930.0,0.45288175]
[1756981698041,1.30617,110940.0,110930.0,0.45288175]
[1756981698243,2.13553,110940.0,110930.0,0.45288175]
[1756981699542,1.8752749,110940.0,110930.0,0.45288175]
[1756981699743,2.13553,110940.0,110930.0,0.45288175]
[1756981700042,1.30617,110940.0,110930.0,0.45288175]
[1756981700240,2.13553,110940.0,110930.0,0.45288175]
[1756981700943,2.13549,110940.0,110930.0,0.45288175]
[1756981701143,1.30617,110940.0,110930.0,0.45288175]
[1756981701643,2.13545,110940.0,110930.0,0.45288175]
[1756981703846,1.8751949,110940.0,110930.0,0.45288175]
[1756981706644,1.0459149,110940.0,110930.0,0.45288175]
[1756981706846,1.8751149,110940.0,110930.0,0.45288175]
[1756981708446,1.8750749,110940.0,110930.0,0.45288175]
[1756981708958,1.30617,110940.0,110930.0,0.45288175]
[1756981709245,2.13525,110940.0,110930.0,0.45288175]
[1756981716748,1.88525,110940.0,110930.0,0.45288175]
[1756981724056,1.6249949,110940.0,110930.0,0.45288175]
[1756981724245,1.88525,110940.0,110930.0,0.45288175]
[1756981727262,1.6249949,110940.0,110930.0,0.45288175]
[1756981727461,1.88525,110940.0,110930.0,0.45288175]
[1756981728058,1.6249949,110940.0,110930.0,0.45288175]
[1756981728960,1.88525,110940.0,110930.0,0.45288175]
[1756981729958,2.24605,110940.0,110930.0,0.45288175]
[1756981733163,2.28387174,110940.0,110930.0,0.45288175]
[1756981733363,2.24605,110940.0,110930.0,0.45288175]
[1756981733962,2.24545,110940.0,110930.0,0.45288175]
[1756981735358,2.24541,110940.0,110930.0,0.45288175]
[1756981745876,1.9851549,110940.0,110930.0,0.45288175]
[1756981746872,2.24541,110940.0,110930.0,0.45288175]
[1756981747879,2.24241,110940.0,110930.0,0.45288175]
[1756981748176,2.24541,110940.0,110930.0,0.45288175]
[1756981752080,2.26613247,110940.0,110930.0,0.45288175]
[1756981752882,2.26613247,110940.0,110930.0,0.38]
[1756981756276,1.43769247,110940.0,110930.0,0.38]
[1756981756584,2.26545247,110940.0,110930.0,0.38]
[1756981757581,1.43769247,110940.0,110930.0,0.38]
[1756981757883,2.26545247,110940.0,110930.0,0.38]
[1756981759289,1.43769247,110940.0,110930.0,0.38]
[1756981759588,2.26541247,110940.0,110930.0,0.38]
[1756981760381,1.43769247,110940.0,110930.0,0.38]
[1756981760581,2.00507737,110940.0,110930.0,0.38]
[1756981760786,2.26533247,110940.0,110930.0,0.38]
[1756981766992,2.00507737,110940.0,110930.0,0.38]
[1756981767192,2.26533247,110940.0,110930.0,0.38]
[1756981769207,2.26509247,110940.0,110930.0,0.38]
[1756981771808,3.76045907,110940.0,110930.0,0.38]
[1756981772802,5.66469907,110940.0,110930.0,0.38]
[1756981776809,4.83729907,110940.0,110930.0,0.38]
[1756981777005,5.66445907,110940.0,110930.0,0.38]
[1756981784417,4.83729907,110940.0,110930.0,0.38]
[1756981784616,5.66425907,110940.0,110930.0,0.38]
[1756981796015,5.40400397,110940.0,110930.0,0.38]
[1756981796921,5.66425907,110940.0,110930.0,0.38]
[1756981800522,5.66425907,110940.0,110920.0,0.0001]
[1756981800523,0.44092206,110930.0,110920.0,0.0001]
[1756981800715,0.11103621,110920.0,110910.0,0.0001]
[1756981801024,0.0900393,110910.0,110900.0,0.27998884]
[1756981801223,3.0626059,110910.0,110900.0,0.80998884]
[1756981801616,4.9668859,110910.0,110900.0,0.80998884]
[1756981802525,4.9668859,110910.0,110900.0,0.83984514]
[1756981803627,4.1404859,110910.0,110900.0,0.83984514]
[1756981803923,4.9678459,110910.0,110900.0,0.82129305]
[1756981805325,4.9688459,110910.0,110900.0,1.06929305]
[1756981806429,4.9688459,110910.0,110900.0,0.87929305]
[1756981807522,4.9688459,110910.0,110900.0,0.68831305]
[1756981807720,4.9687659,110910.0,110900.0,0.43831305]
[1756981808131,4.1424859,110910.0,110900.0,0.43831305]
[1756981808326,4.9687259,110910.0,110900.0,0.43831305]
[1756981808630,4.9687259,110910.0,110900.0,0.62784305]
[1756981809939,4.1424859,110910.0,110900.0,0.62784305]
[1756981810129,4.9687259,110910.0,110900.0,0.62784305]
[1756981810824,4.9686859,110910.0,110900.0,0.62784305]
[1756981811524,4.9686859,110910.0,110900.0,0.50673305]
[1756981812336,4.1424859,110910.0,110900.0,0.50673305]
[1756981812634,4.9686459,110910.0,110900.0,0.62192305]
[1756981813934,5.228901,110910.0,110900.0,0.50673305]
[1756981814437,5.228901,110910.0,110900.0,0.62192305]
[1756981814636,5.228901,110910.0,110900.0,0.50673305]
[1756981814839,5.228901,110910.0,110900.0,0.62192305]
[1756981815434,4.402741,110910.0,110900.0,0.62192305]
[1756981815733,5.228821,110910.0,110900.0,0.62192305]
[1756981818630,5.228741,110910.0,110900.0,0.62192305]
[1756981818839,4.402741,110910.0,110900.0,0.62192305]
[1756981819229,5.228701,110910.0,110900.0,0.62192305]
[1756981819534,5.60264052,110910.0,110900.0,0.43831305]
[1756981819728,5.22909248,110910.0,110900.0,0.43831305]
[1756981825738,5.22909248,110910.0,110900.0,0.62303305]
[1756981827039,0.2073474,110900.0,110890.0,0.18516]
[1756981827239,3.18966548,110900.0,110890.0,0.56506]
[1756981828040,3.18966548,110900.0,110890.0,0.59218598]
[1756981828631,3.18966548,110900.0,110890.0,0.59318598]
[1756981829637,3.18966548,110900.0,110890.0,0.66380055]
[1756981837045,3.09927808,110900.0,110890.0,0.66380055]
[1756981837238,3.18942548,110900.0,110890.0,0.66380055]
[1756981840344,3.25099548,110900.0,110890.0,0.59393055]
[1756981841048,3.25099548,110900.0,110890.0,0.66449055]
[1756981841448,3.18942548,110900.0,110890.0,0.66449055]
[1756981845944,1.97375808,110900.0,110890.0,0.66449055]
[1756981846245,1.67717952,110900.0,110890.0,1.34464575]
[1756981847346,0.85193952,110900.0,110890.0,1.34464575]
[1756981847848,1.55993952,110900.0,110890.0,1.34464575]
[1756981848238,1.55993952,110900.0,110890.0,1.59464575]
[1756981848239,0.73473952,110900.0,110890.0,1.59464575]
[1756981848438,0.37393952,110900.0,110890.0,1.59464575]
[1756981848737,1.19909952,110900.0,110890.0,1.59464575]
[1756981849246,1.19909952,110900.0,110890.0,1.59456575]
[1756981849948,2.38998,110910.0,110900.0,0.2829671]
[1756981850149,3.46413952,110910.0,110900.0,1.2729671]
[1756981850350,3.46413952,110910.0,110900.0,1.5229671]
[1756981850946,2.63901952,110910.0,110900.0,1.5229671]
[1756981851249,3.46409952,110910.0,110900.0,1.5229671]
[1756981851443,3.10429952,110910.0,110900.0,1.8837671]
[1756981851953,2.27921952,110910.0,110900.0,1.8837671]
[1756981852145,3.10429952,110910.0,110900.0,1.8837671]
[1756981852346,3.10529952,110910.0,110900.0,1.8837671]
[1756981853453,3.10429952,110910.0,110900.0,1.8857671]
[1756981854758,3.10329952,110910.0,110900.0,1.8867671]
[1756981854950,4.22511808,110910.0,110900.0,1.8867671]
[1756981856970,2.72936,110910.0,110900.0,1.8867671]
[1756981857168,4.22511808,110910.0,110900.0,1.8867671]
[1756981857773,2.72936,110910.0,110900.0,1.8867671]
[1756981858068,4.22511808,110910.0,110900.0,1.8867671]
[1756981858969,2.72936,110910.0,110900.0,1.8867671]
[1756981859169,4.22511808,110910.0,110900.0,1.6367671]
[1756981860566,1.61209474,110910.0,110900.0,1.8867671]
[1756981860773,2.41344622,110910.0,110900.0,1.8867671]
[1756981860970,2.31704897,110910.0,110900.0,1.8867671]
[1756981861170,2.24204897,110910.0,110900.0,1.8867671]
[1756981861371,1.86540945,110910.0,110900.0,1.8867671]
[1756981861575,2.23934897,110910.0,110900.0,1.8867671]
[1756981862171,2.05933897,110910.0,110900.0,1.8867671]
[1756981862371,1.06076897,110910.0,110900.0,1.8867671]
[1756981862575,1.88548897,110910.0,110900.0,1.8867671]
[1756981865769,2.25942849,110910.0,110900.0,1.6367671]
[1756981865969,3.07619753,110910.0,110900.0,1.5662071]
[1756981867572,3.07619753,110910.0,110900.0,1.47606]
[1756981867766,3.07619753,110910.0,110900.0,1.5662071]
[1756981868870,3.07619753,110910.0,110900.0,1.47606]
[1756981869762,3.67659173,110910.0,110900.0,1.11526]
[1756981870175,3.92659173,110910.0,110900.0,1.11526]
[1756981870475,3.67659173,110910.0,110900.0,1.11526]
[1756981870676,4.31739173,110910.0,110900.0,1.11526]
[1756981870866,4.30739173,110910.0,110900.0,1.11526]
[1756981871063,4.30939173,110910.0,110900.0,1.11226]
[1756981872175,4.03939173,110910.0,110900.0,1.11226]
[1756981873282,3.77913663,110910.0,110900.0,1.11226]
[1756981873481,4.03939173,110910.0,110900.0,1.11226]
[1756981875282,3.58809263,110910.0,110900.0,1.47306]
[1756981875477,1.06276897,110910.0,110900.0,1.5632072]
[1756981875682,1.88712897,110910.0,110900.0,1.8132072]
[1756981875883,1.06276897,110910.0,110900.0,1.8132072]
[1756981876183,1.88712897,110910.0,110900.0,1.8132072]
[1756981876481,1.02572808,110910.0,110900.0,1.8132072]
[1756981876682,1.84908808,110910.0,110900.0,1.8132072]
[1756981876984,1.84908808,110910.0,110900.0,1.8152072]
[1756981877276,1.84908808,110910.0,110900.0,1.8142072]
[1756981877481,1.84904808,110910.0,110900.0,1.8162072]
[1756981877678,0.84393808,110910.0,110900.0,1.8162072]
[1756981877882,1.29431856,110910.0,110900.0,1.8162072]
[1756981878382,0.37403952,110920.0,110900.0,1.8162072]
[1756981878383,0.37393952,110920.0,110910.0,0.0901391]
[1756981878582,1.19821952,110920.0,110910.0,1.2909391]
[1756981878971,1.19821952,110920.0,110910.0,1.5409391]
[1756981879480,1.19788171,110920.0,110910.0,1.5409391]
[1756981879682,1.19788171,110920.0,110910.0,1.5419391]
[1756981881287,0.82428,110920.0,110910.0,1.5419391]
[1756981881683,1.19788171,110920.0,110910.0,1.5419391]
[1756981881985,0.37360171,110920.0,110910.0,1.5419391]
[1756981882285,1.19784171,110920.0,110910.0,1.5419391]
[1756981882675,0.37360171,110920.0,110910.0,1.5419391]
[1756981882878,1.19780171,110920.0,110910.0,1.5419391]
[1756981884481,1.19780171,110920.0,110910.0,1.4518]
[1756981884682,1.26548171,110920.0,110910.0,1.2018]
[1756981885878,0.44128171,110920.0,110910.0,1.2018]
[1756981886079,1.19772171,110920.0,110910.0,1.2919391]
[1756981890389,1.26540171,110920.0,110910.0,1.2919391]
[1756981891391,1.26540171,110920.0,110910.0,1.2018]
[1756981894695,0.82412,110920.0,110910.0,1.2919392]
[1756981894889,1.19772171,110920.0,110910.0,1.2919392]
[1756981904497,0.82376,110920.0,110910.0,1.2919392]
[1756981904702,1.19746171,110920.0,110910.0,1.2919392]
[1756981905191,3.47518947,110940.0,110920.0,0.03371]
[1756981905392,1.19736171,110930.0,110920.0,1.25451]
[1756981905690,1.26718171,110930.0,110920.0,1.25451]
[1756981907002,1.26818171,110930.0,110920.0,1.37072737]
[1756981908404,1.26918171,110930.0,110920.0,1.37072737]
[1756981918911,0.37560171,110930.0,110920.0,1.37072737]
[1756981919213,1.19916171,110930.0,110920.0,1.46085837]
[1756981919400,1.99358434,110940.0,110930.0,0.0901229]
[1756981919602,3.19074605,110940.0,110930.0,1.32948846]
[1756981920010,2.36718605,110940.0,110930.0,1.32948846]
[1756981920209,1.92469434,110940.0,110930.0,1.32948846]
[1756981920410,3.12181605,110940.0,110930.0,1.32948846]
[1756981920615,3.12381605,110940.0,110930.0,1.32948846]
[1756981920815,2.30029605,110940.0,110930.0,1.57948846]
[1756981921015,3.12381605,110940.0,110930.0,1.57948846]
[1756981921217,2.72964,110940.0,110930.0,1.57948846]
[1756981921409,3.10524171,110940.0,110930.0,1.57948846]
[1756981921810,3.17506171,110940.0,110930.0,1.57948846]
[1756981922009,3.17506171,110940.0,110930.0,1.48936556]
[1756981923318,2.80146,110940.0,110930.0,1.48936556]
[1756981923519,3.17506171,110940.0,110930.0,1.48936556]
[1756981924621,3.17506171,110940.0,110930.0,1.57948846]
[1756981924811,3.10524171,110940.0,110930.0,1.57948846]
[1756981926528,2.73164,110940.0,110930.0,1.57948846]
[1756981926722,3.10516171,110940.0,110930.0,1.57948846]
[1756981930126,2.73156,110940.0,110930.0,1.57948846]
[1756981930322,3.10516171,110940.0,110930.0,1.57948846]
[1756981936723,2.73156,110940.0,110930.0,1.57948846]
[1756981936928,3.10516171,110940.0,110930.0,1.57948846]
[1756981937228,3.10516171,110940.0,110930.0,1.48936556]
[1756981937429,3.17294171,110940.0,110930.0,1.48936556]
[1756981939433,3.17285197,110940.0,110930.0,1.48936556]
[1756981942833,2.79934,110940.0,110930.0,1.48936556]
[1756981947232,5.01280778,110940.0,110930.0,1.23936556]
[1756981950139,2.60966707,110940.0,110930.0,1.23936556]
[1756981950336,2.54188707,110940.0,110930.0,1.23936556]
[1756981950533,3.36496707,110940.0,110930.0,1.23936556]
[1756981951832,2.1683751,110940.0,110930.0,1.32948846]
[1756981952032,2.9914551,110940.0,110930.0,1.32948846]
[1756981952232,2.14907131,110940.0,110930.0,1.32948846]
[1756981952432,2.71189621,110940.0,110930.0,1.57948846]
[1756981952642,0.82708,110940.0,110930.0,1.57948846]
[1756981952943,0.82708,110940.0,110930.0,1.78935479]
[1756981955238,0.82708,110940.0,110930.0,1.57948846]
[1756981956136,0.004,110940.0,110930.0,1.57948846]
[1756981956439,0.54139938,110950.0,110940.0,0.0303]
[1756981956638,1.62459448,110950.0,110940.0,1.2911]
[1756981957636,1.63259448,110950.0,110940.0,1.2911]
[1756981957936,1.46476707,110950.0,110940.0,1.3812149]
[1756981958439,0.831,110950.0,110940.0,1.3812149]
[1756981958837,0.44129197,110960.0,110940.0,1.84483547]
[1756981959031,0.612394,110960.0,110950.0,0.38392]
[1756981959231,1.19651197,110960.0,110950.0,1.3040267]
[1756981959539,1.19651197,110960.0,110950.0,1.32242836]
[1756981960439,1.19951197,110960.0,110950.0,1.32242836]
[1756981961338,1.97023694,110970.0,110960.0,0.0900987]
[1756981961539,3.36006743,110970.0,110960.0,1.4502487]
[1756981962139,3.36006743,110970.0,110960.0,1.52139533]
[1756981963245,3.36106743,110970.0,110960.0,1.52139533]
[1756981963448,2.98755546,110970.0,110960.0,1.52139533]
[1756981963649,2.53814743,110970.0,110960.0,1.52139533]
[1756981963833,3.36102743,110970.0,110960.0,1.52139533]
[1756981964542,2.53814743,110970.0,110960.0,1.52139533]
[1756981964747,3.43505743,110970.0,110960.0,1.50036533]
[1756981964944,2.61217743,110970.0,110960.0,1.50036533]
[1756981965248,3.06150546,110970.0,110960.0,1.41026663]
[1756981965644,2.61217743,110970.0,110960.0,1.50036533]
[1756981965846,3.43501743,110970.0,110960.0,1.50036533]
[1756981966744,3.43501743,110970.0,110960.0,1.41026663]
[1756981967245,3.413824,110970.0,110960.0,1.50036533]
[1756981967840,2.516954,110970.0,110960.0,1.50036533]
[1756981968039,3.339754,110970.0,110960.0,1.50036533]
[1756981968257,3.413784,110970.0,110960.0,1.50036533]
[1756981969453,3.412784,110970.0,110960.0,1.50036533]
[1756981969655,3.412784,110970.0,110960.0,1.50136533]
[1756981971356,3.412784,110970.0,110960.0,1.41126663]
[1756981972768,4.78331991,110970.0,110960.0,1.41126663]
[1756981973365,3.96051991,110970.0,110960.0,1.41126663]
[1756981973570,4.78319991,110970.0,110960.0,1.41126663]
[1756981973773,3.96051991,110970.0,110960.0,1.41126663]
[1756981973958,4.78319991,110970.0,110960.0,1.41126663]
[1756981974163,4.80436628,110970.0,110960.0,1.41126663]
[1756981976772,4.80432628,110970.0,110960.0,1.41126663]
[1756981978973,3.98168628,110970.0,110960.0,1.41126663]
[1756981979177,4.55428628,110970.0,110960.0,1.41126663]
[1756981981281,2.21647203,110970.0,110960.0,1.41126663]
[1756981981481,3.412544,110970.0,110960.0,1.50136523]
[1756981981681,3.412544,110970.0,110960.0,1.41126663]
[1756981982077,2.21647203,110970.0,110960.0,1.50136523]
[1756981982282,3.338514,110970.0,110960.0,1.50136523]
[1756981982981,3.412544,110970.0,110960.0,1.50136523]
[1756981983284,2.21647203,110970.0,110960.0,1.50136523]
[1756981983485,2.96500203,110970.0,110960.0,1.51821523]
[1756981983886,2.96500203,110970.0,110960.0,1.76821523]
[1756981984883,2.96500203,110970.0,110960.0,1.77121523]
[1756981985388,2.515954,110970.0,110960.0,1.77121523]
[1756981985584,3.338474,110970.0,110960.0,1.77121523]
[1756981985886,3.338474,110970.0,110960.0,1.76921523]
[1756981986274,3.338474,110970.0,110960.0,1.76821523]
[1756981986480,3.338474,110970.0,110960.0,1.77121523]
[1756981987086,3.412504,110970.0,110960.0,1.75436523]
[1756981987483,3.412504,110970.0,110960.0,2.49069796]
[1756981988786,3.78601597,110970.0,110960.0,2.24069796]
[1756981989179,3.412504,110970.0,110960.0,2.24069796]
[1756981989583,3.78601597,110970.0,110960.0,1.41426663]
[1756981989785,4.53303991,110970.0,110960.0,1.41426663]
[1756981991684,4.78303991,110970.0,110960.0,1.41426663]
[1756981992079,5.05303991,110970.0,110960.0,1.41426663]
[1756981993280,3.96051991,110970.0,110960.0,1.41426663]
[1756981993487,2.839984,110970.0,110960.0,1.41426663]
[1756981993684,3.412464,110970.0,110960.0,1.50436523]
[1756981994192,2.589984,110970.0,110960.0,1.50436523]
[1756981994387,3.412464,110970.0,110960.0,1.50436523]
[1756981994584,3.412464,110970.0,110960.0,1.41426663]
[1756981996097,3.78597597,110970.0,110960.0,1.41426663]
[1756981996489,3.78593597,110970.0,110960.0,1.41426663]
[1756982000492,1.88237597,110970.0,110960.0,1.41426663]
[1756982000798,1.05993597,110970.0,110960.0,1.50436523]
[1756982000998,1.508864,110970.0,110960.0,1.50436523]
[1756982001589,0.31291203,110970.0,110960.0,1.75436523]
[1756982001788,0.55724039,110980.0,110970.0,0.1810005]
[1756982001993,1.61846242,110980.0,110970.0,1.47975064]
[1756982003092,1.61846242,110980.0,110970.0,1.48175064]
[1756982003597,0.79602242,110980.0,110970.0,1.48175064]
[1756982003799,1.61842242,110980.0,110970.0,1.48175064]
[1756982004198,1.61842242,110980.0,110970.0,1.48275064]
[1756982005603,1.61842242,110980.0,110970.0,1.48375064]
[1756982009901,1.61838242,110980.0,110970.0,1.48375064]
[1756982010503,1.61838242,110980.0,110970.0,1.50259679]
[1756982011907,1.61838242,110980.0,110970.0,1.41250629]
[1756982012111,1.61838242,110980.0,110970.0,1.50259679]
[1756982014200,1.61838242,110980.0,110970.0,1.41250629]
[1756982014502,1.61838242,110980.0,110970.0,1.50259679]
[1756982014704,1.61838242,110980.0,110970.0,1.41250629]
[1756982016306,2.24172281,110980.0,110970.0,1.05170629]
[1756982016603,1.86838242,110980.0,110970.0,1.05170629]
[1756982016809,2.24172281,110980.0,110970.0,1.05170629]
[1756982017011,3.07848599,110980.0,110970.0,0.96079629]
[1756982017308,3.43928599,110980.0,110970.0,0.96079629]
[1756982017506,3.78928599,110980.0,110970.0,0.96079629]
[1756982017715,3.78928599,110980.0,110970.0,0.26]
[1756982017902,0.2764305,110970.0,110960.0,0.07114663]
[1756982018103,2.67042788,110970.0,110960.0,0.68]
[1756982019000,3.47270788,110970.0,110960.0,0.68]
[1756982019310,3.47270788,110970.0,110960.0,0.682]
[1756982020017,3.21270788,110970.0,110960.0,0.684]
[1756982020512,3.46270788,110970.0,110960.0,0.684]
[1756982021714,2.64042788,110970.0,110960.0,0.684]
[1756982022014,3.46274788,110970.0,110960.0,0.684]
[1756982022214,3.46274788,110970.0,110960.0,0.75580976]
[1756982022513,3.73274788,110970.0,110960.0,0.75580976]
[1756982026521,3.49386585,110970.0,110960.0,0.75580976]
[1756982026821,3.73274788,110970.0,110960.0,0.75580976]
[1756982027615,3.77274788,110970.0,110960.0,0.06262976]
[1756982027830,3.77274788,110970.0,110960.0,0.06]
[1756982028118,2.20408788,110970.0,110960.0,0.54895]
[1756982028305,3.02640788,110970.0,110960.0,0.54895]
[1756982028709,2.20408788,110970.0,110960.0,0.54895]
[1756982028918,3.02640788,110970.0,110960.0,1.15895]
[1756982029219,3.02640788,110970.0,110960.0,1.15883]
[1756982030420,3.02640788,110970.0,110960.0,1.23006312]
[1756982031922,1.53304632,110970.0,110960.0,1.23006312]
[1756982032124,3.02640788,110970.0,110960.0,1.23006312]
[1756982035928,1.53304632,110970.0,110960.0,1.23006312]
[1756982036118,3.02640788,110970.0,110960.0,1.23006312]
[1756982040623,2.78752585,110970.0,110960.0,1.23006312]
[1756982040929,3.02640788,110970.0,110960.0,1.23006312]
[1756982041123,2.20408788,110970.0,110960.0,1.23006312]
[1756982041431,3.02640788,110970.0,110960.0,1.23006312]
[1756982041630,1.90638671,110970.0,110960.0,1.23006312]
[1756982042833,2.2797271,110970.0,110960.0,1.23006312]
[1756982046833,3.02640788,110970.0,110960.0,1.23006312]
[1756982047027,3.31640788,110970.0,110960.0,1.23006312]
[1756982048631,3.02640788,110970.0,110960.0,1.11263312]
[1756982048835,3.02640788,110970.0,110960.0,0.70111312]
[1756982049027,3.02640788,110970.0,110960.0,0.81854312]
[1756982049227,2.20408788,110970.0,110960.0,0.88774312]
[1756982049525,3.02636788,110970.0,110960.0,1.22774312]
[1756982050533,2.20408788,110970.0,110960.0,1.22774312]
[1756982050835,3.02636788,110970.0,110960.0,1.22774312]
[1756982051431,0.23888203,110970.0,110960.0,1.22774312]
[1756982051634,1.06112203,110970.0,110960.0,1.94118211]
[1756982051937,0.82224,110970.0,110960.0,1.94118211]
[1756982052128,0.82224,110970.0,110960.0,1.56784172]
[1756982052631,0.82224,110970.0,110960.0,1.47774312]
[1756982057137,1.19558039,110970.0,110960.0,1.47774312]
[1756982057335,0.3609,110980.0,110970.0,0.18436]
[1756982057528,1.43438242,110980.0,110970.0,1.16436]
[1756982060531,1.43438242,110980.0,110970.0,1.52516]
[1756982061135,1.06104203,110980.0,110970.0,1.52516]
[1756982061334,1.43438242,110980.0,110970.0,1.52516]
[1756982061534,1.43428193,110980.0,110970.0,1.52516]
[1756982062235,1.06104203,110980.0,110970.0,1.52516]
[1756982062446,2.29732468,110990.0,110980.0,0.18436]
[1756982062640,3.35818671,110990.0,110980.0,1.15436]
[1756982062834,3.44826101,110990.0,110980.0,1.15436]
[1756982064641,3.44826101,110990.0,110980.0,1.27189636]
[1756982065742,3.20937898,110990.0,110980.0,1.27189636]
[1756982066042,3.44826101,110990.0,110980.0,1.27189636]
[1756982069849,3.07502111,110990.0,110980.0,1.27189636]
[1756982070143,3.44826101,110990.0,110980.0,1.27189636]
[1756982076050,3.20937898,110990.0,110980.0,1.27189636]
[1756982076246,3.44826101,110990.0,110980.0,1.27189636]
[1756982076950,3.20937898,110990.0,110980.0,1.27189636]
[1756982078052,3.44826101,110990.0,110980.0,1.27189636]
[1756982085157,3.07470111,110990.0,110980.0,1.27189636]
[1756982085455,3.44794101,110990.0,110980.0,1.27189636]
[1756982090357,3.44794101,110990.0,110980.0,1.63269636]
[1756982091055,2.62618101,110990.0,110980.0,1.63269636]
[1756982091255,3.44790101,110990.0,110980.0,1.63269636]
[1756982091761,1.54482101,110990.0,110980.0,1.63269636]
[1756982092258,1.54478101,110990.0,110980.0,1.63269636]
[1756982098256,1.54470101,110990.0,110980.0,1.63269636]
[1756982100362,0.63302671,110990.0,110980.0,1.63269636]
[1756982100561,2.3539317,111000.0,110990.0,0.19508]
[1756982100761,3.78755363,111000.0,110990.0,1.09508]
[1756982101655,3.78855363,111000.0,110990.0,1.09508]
[1756982102766,3.78955363,111000.0,110990.0,1.09508]
[1756982105168,3.42875363,111000.0,110990.0,1.09508]
[1756982108462,2.60715363,111000.0,110990.0,1.09508]
[1756982108664,2.60714813,111000.0,110990.0,1.09508]
[1756982108964,3.42862813,111000.0,110990.0,1.09508]
[1756982109165,3.42858813,111000.0,110990.0,1.09508]
[1756982110167,2.60714813,111000.0,110990.0,1.09508]
[1756982110561,3.42858813,111000.0,110990.0,1.09508]
[1756982111763,1.90496,111000.0,110990.0,1.7183199]
[1756982112063,2.72636,111000.0,110990.0,2.0791199]
[1756982112461,1.90496,111000.0,110990.0,2.0791199]
[1756982112762,2.72636,111000.0,110990.0,2.0791199]
[1756982113360,1.90496,111000.0,110990.0,2.0791199]
[1756982113566,2.72636,111000.0,110990.0,2.87528149]
[1756982115070,2.72636,111000.0,110990.0,2.50204159]
[1756982115275,2.72636,111000.0,110990.0,2.87528149]
[1756982115572,2.72636,111000.0,110990.0,2.41196739]
[1756982116873,3.0995999,111000.0,110990.0,2.41196739]
[1756982117672,2.72636,111000.0,110990.0,2.41196739]
[1756982119278,3.0995999,111000.0,110990.0,2.41196739]
[1756982121074,2.72636,111000.0,110990.0,2.50204169]
[1756982121274,3.0995999,111000.0,110990.0,2.50204169]
[1756982121479,3.09942663,111000.0,110990.0,2.50204169]
[1756982122371,2.72636,111000.0,110990.0,3.01052077]
[1756982122568,2.7262,111000.0,110990.0,3.01052077]
[1756982122772,1.90496,111000.0,110990.0,3.01052077]
[1756982122979,0.82324,111000.0,110990.0,3.34052077]
[1756982123273,0.002,111000.0,110990.0,3.34052077]
[1756982123480,0.8232,111000.0,110990.0,3.34052077]
[1756982125975,0.8232,111000.0,110990.0,2.96745414]
[1756982126276,0.8232,111000.0,110990.0,3.34052077]
[1756982130380,0.002,111000.0,110990.0,3.34052077]
[1756982135671,0.002,111000.0,110990.0,2.96745414]
[1756982135877,0.002,111000.0,110990.0,3.34052077]
[1756982138975,0.002,111000.0,110990.0,2.96745414]
[1756982139170,0.002,111000.0,110990.0,3.34052077]
[1756982140386,0.002,111000.0,110990.0,3.44052077]
[1756982140679,0.002,111000.0,110990.0,3.06745414]
[1756982140883,0.002,111000.0,110990.0,3.44052077]
[1756982145385,0.002,111000.0,110990.0,4.26148077]
[1756982145977,0.002,111000.0,110990.0,3.88841414]
[1756982146378,0.37506663,111000.0,110990.0,3.88841414]
[1756982146979,0.002,111000.0,110990.0,3.88841414]
[1756982147487,0.37506663,111000.0,110990.0,3.88841414]
[1756982148184,0.002,111000.0,110990.0,3.88841414]
[1756982149093,0.37506663,111000.0,110990.0,3.89285414]
[1756982149391,1.49426652,111000.0,110990.0,3.64285414]
[1756982149783,1.49426652,111000.0,110990.0,3.85272047]
[1756982149993,1.49326652,111000.0,110990.0,3.85272047]
[1756982150186,1.49326652,111000.0,110990.0,3.85672047]
[1756982150787,1.49226652,111000.0,110990.0,3.64685414]
[1756982150993,0.0002,111010.0,110990.0,3.64685414]
[1756982151290,1.49226652,111000.0,110990.0,2.46365414]
[1756982151490,1.49226652,111000.0,110990.0,3.29065414]
[1756982152095,1.49226652,111000.0,110990.0,3.28765414]
[1756982152291,1.49226652,111000.0,110990.0,3.28665414]
[1756982152594,1.49226652,111000.0,110990.0,3.29065414]
[1756982152897,1.49226652,111000.0,110990.0,3.28665414]
[1756982153294,1.49226652,111000.0,110990.0,3.50052047]
[1756982154289,1.85306652,111000.0,110990.0,2.79419308]
[1756982154490,1.85306652,111000.0,110990.0,2.48132675]